fUST/lending_fUST_20250628
["ID","MTS","AMOUNT","RATE_DAILY","PERIOD"]
[368314396,1751112644592,-500.0,0.00019726,2]
[368314397,1751112644601,-582.02621637,0.00019726,2]
[368314398,1751112644610,-460.0,0.00019726,2]
[368314399,1751112644619,-460.0,0.00019726,2]
[368314400,1751112644629,-1777.39,0.00019726,2]
[368314401,1751112644639,-460.0,0.00019726,2]
[368314402,1751112644651,-460.0,0.00019726,2]
[368314403,1751112644660,-460.0,0.00019726,2]
[368314404,1751112644669,-460.0,0.00019726,2]
[368314405,1751112644678,-463.66,0.00019726,2]
[368314406,1751112644687,-2348.86,0.00019726,2]
[368314407,1751112644696,-903.49,0.00019726,2]
[368314408,1751112644705,-460.0,0.00019726,2]
[368314409,1751112644715,-540.18,0.00019726,2]
[368314410,1751112644724,-1929.81,0.00019726,2]
[368314411,1751112644733,-770.42,0.00019726,2]
[368314412,1751112644742,-460.0,0.00019726,2]
[368314413,1751112644751,-460.0,0.00019726,2]
[368314414,1751112644761,-460.0,0.00019726,2]
[368314415,1751112644770,-460.0,0.00019726,2]
[368314416,1751112644780,-510.92,0.00019726,2]
[368314417,1751112644790,-460.0,0.00019726,2]
[368314418,1751112644799,-460.0,0.00019726,2]
[368314419,1751112644808,-460.0,0.00019726,2]
[368314420,1751112644818,-460.0,0.00019726,2]
[368314421,1751112644827,-533.82,0.00019726,2]
[368314422,1751112644836,-460.0,0.00019726,2]
[368314423,1751112644845,-460.0,0.00019726,2]
[368314424,1751112644855,-460.0,0.00019726,2]
[368314425,1751112644864,-460.0,0.00019726,2]
[368314426,1751112644874,-460.0,0.00019726,2]
[368314427,1751112644883,-2238.61,0.00019726,2]
[368314428,1751112644893,-460.0,0.00019726,2]
[368314429,1751112644903,-2082.05,0.00019726,2]
[368314430,1751112644912,-460.0,0.00019726,2]
[368314431,1751112644921,-460.0,0.00019726,2]
[368314432,1751112644931,-662.68,0.00019726,2]
[368314433,1751112644941,-460.0,0.00019726,2]
[368314434,1751112644950,-888.51,0.00019726,2]
[368314435,1751112644959,-2294.55,0.00019726,2]
[368314436,1751112644968,-460.0,0.00019726,2]
[368314437,1751112644978,-2565.67,0.00019726,2]
[368314438,1751112644987,-460.0,0.00019726,2]
[368314439,1751112644997,-460.0,0.00019726,2]
[368314440,1751112645008,-571.49,0.00019726,2]
[368314441,1751112645017,-475.52,0.00019726,2]
[368314442,1751112645027,-460.0,0.00019726,2]
[368314443,1751112645036,-985.11,0.00019726,2]
[368314444,1751112645045,-297.9,0.00019726,2]
[368314445,1751112645054,-460.0,0.00019726,2]
[368314446,1751112645063,-460.0,0.00019726,2]
[368314447,1751112645073,-472.84,0.00019726,2]
[368314448,1751112645082,-1816.69,0.00019726,2]
[368314449,1751112645091,-477.93,0.00019726,2]
[368314450,1751112645101,-460.0,0.00019726,2]
[368314451,1751112645110,-526.86064043,0.00019726,2]
[368314452,1751112645120,-468.63,0.00019726,2]
[368314453,1751112645129,-507.7951719,0.00019726,2]
[368314454,1751112645140,-1390.5,0.00019726,2]
[368314455,1751112645150,-500.0,0.00019726,2]
[368314456,1751112645159,-460.0,0.00019726,2]
[368314457,1751112645168,-3647.37,0.00019726,2]
[368314458,1751112645177,-590.86,0.00019726,2]
[368314459,1751112645188,-460.0,0.00019726,2]
[368314460,1751112645198,-460.0,0.00019726,2]
[368314461,1751112645207,-706.41,0.00019726,2]
[368314462,1751112645218,-460.0,0.00019726,2]
[368314463,1751112645227,-460.0,0.00019726,2]
[368314464,1751112645236,-460.0,0.00019726,2]
[368314465,1751112645246,-460.0,0.00019726,2]
[368314466,1751112645255,-435.40622101,0.00019726,2]
[368314467,1751112645264,-460.0,0.00019726,2]
[368314468,1751112645273,-573.22,0.00019726,2]
[368314469,1751112645283,-460.0,0.00019726,2]
[368314470,1751112645292,-460.0,0.00019726,2]
[368314471,1751112645301,-460.0,0.00019726,2]
[368314472,1751112645311,-1036.57,0.00019726,2]
[368314473,1751112645320,-460.0,0.00019726,2]
[368314474,1751112645329,-1628.95,0.00019726,2]
[368314475,1751112645339,-535.27,0.00019726,2]
[368314476,1751112645349,-583.65,0.00019726,2]
[368314477,1751112645358,-460.0,0.00019726,2]
[368314478,1751112645368,-3695.96,0.00019726,2]
[368314479,1751112645377,-460.0,0.00019726,2]
[368314480,1751112645387,-257.61468776,0.00019726,2]
[368314481,1751112645396,-460.0,0.00019726,2]
[368314482,1751112645406,-460.0,0.00019726,2]
[368314483,1751112645415,-460.0,0.00019726,2]
[368314484,1751112645424,-571.18,0.00019726,2]
[368314485,1751112645435,-460.0,0.00019726,2]
[368314486,1751112645444,-460.0,0.00019726,2]
[368314487,1751112645454,-1010.35,0.00019726,2]
[368314488,1751112645463,-865.16,0.00019726,2]
[368314489,1751112645472,-460.0,0.00019726,2]
[368314490,1751112645482,-460.0,0.00019726,2]
[368314491,1751112645491,-460.0,0.00019726,2]
[368314492,1751112645500,-1301.2,0.00019726,2]
[368314493,1751112645510,-430.0,0.00019726,2]
[368314494,1751112645519,-579.75,0.00019726,2]
[368314495,1751112645528,-597.22,0.00019726,2]
[368314496,1751112645538,-500.0,0.00019784,2]
[368314497,1751112645547,-6503.10249788,0.000199,2]
[368314498,1751112645557,-639.72859388,0.00019989,2]
[368314499,1751112645566,-460.0,0.0002,2]
[368314500,1751112645575,-447.8459424,0.0002,2]
[368314501,1751112645585,-460.0,0.0002,2]
[368314502,1751112645594,-540.0,0.0002,2]
[368314503,1751112645604,-460.0,0.0002,2]
[368314504,1751112645613,-460.0,0.0002,2]
[368314505,1751112645623,-460.0,0.0002,2]
[368314506,1751112645632,-460.0,0.0002,2]
[368314507,1751112645641,-460.0,0.0002,2]
[368314508,1751112645650,-500.0,0.0002,2]
[368314509,1751112645659,-460.0,0.0002,2]
[368314510,1751112645668,-460.0,0.0002,2]
[368314511,1751112645678,-460.0,0.0002,2]
[368314512,1751112645687,-460.0,0.0002,2]
[368314513,1751112645696,-460.0,0.0002,2]
[368314514,1751112645705,-460.0,0.0002,2]
[368314515,1751112645714,-460.0,0.0002,2]
[368314516,1751112645723,-586.13,0.0002,2]
[368314517,1751112645732,-460.0,0.0002,2]
[368314518,1751112645742,-460.0,0.0002,2]
[368314519,1751112645751,-460.0,0.0002,2]
[368314520,1751112645761,-460.0,0.0002,2]
[368314521,1751112645770,-696.72,0.0002,2]
[368314522,1751112645781,-460.0,0.0002,2]
[368314523,1751112645790,-460.0,0.0002,2]
[368314524,1751112645801,-460.0,0.0002,2]
[368314525,1751112645811,-460.0,0.0002,2]
[368314526,1751112645820,-460.0,0.0002,2]
[368314527,1751112645830,-460.0,0.0002,2]
[368314528,1751112645839,-460.0,0.0002,2]
[368314529,1751112645848,-460.0,0.0002,2]
[368314530,1751112645858,-605.18924806,0.0002,2]
[368314531,1751112645867,-460.0,0.0002,2]
[368314532,1751112645876,-460.0,0.0002,2]
[368314533,1751112645885,-460.0,0.0002,2]
[368314534,1751112645895,-460.0,0.0002,2]
[368314535,1751112645904,-500.0,0.0002,2]
[368314536,1751112645914,-160.0,0.0002,3]
[368314537,1751112645923,-460.0,0.0002,2]
[368314538,1751112645933,-460.0,0.0002,2]
[368314539,1751112645942,-1777.39,0.0002,2]
[368314540,1751112645951,-460.0,0.0002,2]
[368314541,1751112645961,-460.0,0.0002,2]
[368314542,1751112645970,-460.0,0.0002,2]
[368314543,1751112645980,-460.0,0.0002,2]
[368314544,1751112645989,-2348.86,0.0002,2]
[368314545,1751112646107,-903.49,0.0002,2]
[368314546,1751112646116,-460.0,0.0002,2]
[368314547,1751112646126,-540.18,0.0002,2]
[368314548,1751112646135,-1929.81,0.0002,2]
[368314549,1751112646148,-770.42,0.0002,2]
[368314550,1751112646158,-460.0,0.0002,2]
[368314551,1751112646166,-460.0,0.0002,2]
[368314552,1751112646175,-460.0,0.0002,2]
[368314553,1751112646185,-460.0,0.0002,2]
[368314554,1751112646194,-510.92,0.0002,2]
[368314555,1751112646203,-460.0,0.0002,2]
[368314556,1751112646213,-460.0,0.0002,2]
[368314557,1751112646222,-460.0,0.0002,2]
[368314558,1751112646232,-460.0,0.0002,2]
[368314559,1751112646241,-460.0,0.0002,2]
[368314560,1751112646250,-460.0,0.0002,2]
[368314561,1751112646259,-460.0,0.0002,2]
[368314562,1751112646269,-460.0,0.0002,2]
[368314563,1751112646278,-2238.61,0.0002,2]
[368314564,1751112646287,-460.0,0.0002,2]
[368314565,1751112646297,-2082.05,0.0002,2]
[368314566,1751112646306,-460.0,0.0002,2]
[368314567,1751112646315,-460.0,0.0002,2]
[368314568,1751112646324,-662.68,0.0002,2]
[368314569,1751112646334,-888.51,0.0002,2]
[368314570,1751112646344,-2294.55,0.0002,2]
[368314571,1751112646353,-2565.67,0.0002,2]
[368314572,1751112646362,-460.0,0.0002,2]
[368314573,1751112646372,-460.0,0.0002,2]
[368314574,1751112646381,-571.49,0.0002,2]
[368314575,1751112646391,-475.52,0.0002,2]
[368314576,1751112646400,-460.0,0.0002,2]
[368314577,1751112646409,-985.11,0.0002,2]
[368314578,1751112646418,-460.0,0.0002,2]
[368314579,1751112646427,-460.0,0.0002,2]
[368314580,1751112646437,-472.84,0.0002,2]
[368314581,1751112646446,-1816.69,0.0002,2]
[368314582,1751112646456,-477.93,0.0002,2]
[368314583,1751112646466,-460.0,0.0002,2]
[368314584,1751112646475,-468.63,0.0002,2]
[368314585,1751112646484,-1390.5,0.0002,2]
[368314586,1751112646494,-460.0,0.0002,2]
[368314587,1751112646503,-3647.37,0.0002,2]
[368314588,1751112646512,-460.0,0.0002,2]
[368314589,1751112646522,-460.0,0.0002,2]
[368314590,1751112646531,-706.41,0.0002,2]
[368314591,1751112646540,-460.0,0.0002,2]
[368314592,1751112646550,-460.0,0.0002,2]
[368314593,1751112646559,-460.0,0.0002,2]
[368314594,1751112646568,-460.0,0.0002,2]
[368314595,1751112646578,-573.22,0.0002,2]
[368314596,1751112646587,-460.0,0.0002,2]
[368314597,1751112646596,-460.0,0.0002,2]
[368314598,1751112646606,-460.0,0.0002,2]
[368314599,1751112646615,-1036.57,0.0002,2]
[368314600,1751112646624,-1628.95,0.0002,2]
[368314601,1751112646633,-583.65,0.0002,2]
[368314602,1751112646643,-460.0,0.0002,2]
[368314603,1751112646652,-3695.96,0.0002,2]
[368314604,1751112646661,-460.0,0.0002,2]
[368314605,1751112646670,-460.0,0.0002,2]
[368314606,1751112646679,-460.0,0.0002,2]
[368314607,1751112646689,-460.0,0.0002,2]
[368314608,1751112646698,-571.18,0.0002,2]
[368314609,1751112646707,-460.0,0.0002,2]
[368314610,1751112646716,-460.0,0.0002,2]
[368314611,1751112646726,-1010.35,0.0002,2]
[368314612,1751112646735,-865.16,0.0002,2]
[368314613,1751112646744,-460.0,0.0002,2]
[368314614,1751112646753,-460.0,0.0002,2]
[368314615,1751112646762,-460.0,0.0002,2]
[368314616,1751112646772,-1301.2,0.0002,2]
[368314617,1751112646781,-579.75,0.0002,2]
[368314618,1751112646790,-597.22,0.0002,2]
[368314619,1751112646799,-386.0,0.00020004,2]
[368314620,1751112646809,-300.0,0.00020029,2]
[368314621,1751112646819,-500.0,0.00020034,2]
[368314622,1751112646828,-160.0,0.00020103,2]
[368314623,1751112646837,-837.06984471,0.00020103,2]
[368314624,1751112646847,-847.18566335,0.00020103,2]
[368314625,1751112646857,-160.0,0.00020103,2]
[368314626,1751112646867,-160.0,0.00020103,2]
[368314627,1751112646877,-160.0,0.00020103,2]
[368314628,1751112646887,-230.28494567,0.00020103,2]
[368314629,1751112646896,-160.0,0.00020103,2]
[368314630,1751112646906,-214.95397287,0.00020103,2]
[368314631,1751112646915,-12564.78152626,0.00020103,2]
[368314632,1751112646925,-213.78848551,0.00020103,2]
[368314633,1751112646935,-160.0,0.00020103,2]
[368314634,1751112646944,-6503.10249779,0.00020107,2]
[368314635,1751112646954,-386.0,0.00020158,2]
[368314636,1751112646963,-286.732325,0.00020187,2]
[368314637,1751112646974,-386.0,0.00020209,2]
[368314638,1751112646983,-1000.0,0.00020224,2]
[368314639,1751112646992,-1000.0,0.00020224,2]
[368314640,1751112647002,-288.66192114,0.00020248,2]
[368314641,1751112647012,-512.10269403,0.00020248,2]
[368314642,1751112647022,-1000.0,0.00020248,2]
[368314643,1751112647032,-507.76383046,0.00020248,2]
[368314644,1751112647042,-1000.0,0.00020248,2]
[368314645,1751112647051,-500.0,0.0002027,2]
[368314646,1751112647061,-238.79181011,0.0002027,2]
[368314647,1751112647070,-460.0,0.00020273,2]
[368314648,1751112647079,-460.0,0.00020273,2]
[368314649,1751112647089,-460.0,0.00020273,2]
[368314650,1751112647098,-460.0,0.00020273,2]
[368314651,1751112647108,-460.0,0.00020273,2]
[368314652,1751112647118,-460.0,0.00020273,2]
[368314653,1751112647128,-460.0,0.00020273,2]
[368314654,1751112647138,-460.0,0.00020273,2]
[368314655,1751112647148,-268.73,0.00020273,2]
[368314656,1751112647161,-460.0,0.00020273,2]
[368314657,1751112647171,-460.0,0.00020273,2]
[368314658,1751112647181,-460.0,0.00020273,2]
[368314659,1751112647190,-299.84949085,0.00020273,2]
[368314660,1751112647200,-586.13,0.00020273,2]
[368314661,1751112647209,-460.0,0.00020273,2]
[368314662,1751112647219,-436.85594251,0.00020273,2]
[368314663,1751112647228,-460.0,0.00020273,2]
[368314664,1751112647238,-460.0,0.00020273,2]
[368314665,1751112647248,-696.72,0.00020273,2]
[368314666,1751112647258,-460.0,0.00020273,2]
[368314667,1751112647267,-460.0,0.00020273,2]
[368314668,1751112647277,-460.0,0.00020273,2]
[368314669,1751112647286,-460.0,0.00020273,2]
[368314670,1751112647296,-460.0,0.00020273,2]
[368314671,1751112647305,-460.0,0.00020273,2]
[368314672,1751112647315,-460.0,0.00020273,2]
[368314673,1751112647324,-460.0,0.00020273,2]
[368314674,1751112647334,-460.0,0.00020273,2]
[368314675,1751112647343,-460.0,0.00020273,2]
[368314676,1751112647353,-460.0,0.00020273,2]
[368314677,1751112647362,-460.0,0.00020273,2]
[368314678,1751112647373,-1777.39,0.00020273,2]
[368314679,1751112647382,-264.53739657,0.00020273,2]
[368314680,1751112647391,-460.0,0.00020273,2]
[368314681,1751112647401,-460.0,0.00020273,2]
[368314682,1751112647410,-2348.86,0.00020273,2]
[368314683,1751112647419,-903.49,0.00020273,2]
[368314684,1751112647429,-166.17,0.00020273,2]
[368314685,1751112647438,-540.18,0.00020273,2]
[368314686,1751112647447,-1929.81,0.00020273,2]
[368314687,1751112647457,-770.42,0.00020273,2]
[368314688,1751112647467,-460.0,0.00020273,2]
[368314689,1751112647476,-460.0,0.00020273,2]
[368314690,1751112647486,-460.0,0.00020273,2]
[368314691,1751112647496,-460.0,0.00020273,2]
[368314692,1751112647505,-510.92,0.00020273,2]
[368314693,1751112647514,-460.0,0.00020273,2]
[368314694,1751112647523,-460.0,0.00020273,2]
[368314695,1751112647533,-460.0,0.00020273,2]
[368314696,1751112647542,-460.0,0.00020273,2]
[368314697,1751112647551,-460.0,0.00020273,2]
[368314698,1751112647561,-460.0,0.00020273,2]
[368314699,1751112647571,-460.0,0.00020273,2]
[368314700,1751112647580,-460.0,0.00020273,2]
[368314701,1751112647589,-2238.61,0.00020273,2]
[368314702,1751112647599,-460.0,0.00020273,2]
[368314703,1751112647609,-2082.05,0.00020273,2]
[368314704,1751112647618,-460.0,0.00020273,2]
[368314705,1751112647627,-460.0,0.00020273,2]
[368314706,1751112647636,-662.68,0.00020273,2]
[368314707,1751112647645,-888.51,0.00020273,2]
[368314708,1751112647654,-2294.55,0.00020273,2]
[368314709,1751112647664,-2565.67,0.00020273,2]
[368314710,1751112647673,-460.0,0.00020273,2]
[368314711,1751112647683,-460.0,0.00020273,2]
[368314712,1751112647692,-571.49,0.00020273,2]
[368314713,1751112647701,-475.52,0.00020273,2]
[368314714,1751112647711,-415.743074,0.00020273,2]
[368314715,1751112647722,-985.11,0.00020273,2]
[368314716,1751112647732,-496.08772095,0.00020273,2]
[368314717,1751112647742,-460.0,0.00020273,2]
[368314718,1751112647752,-472.84,0.00020273,2]
[368314719,1751112647761,-1816.69,0.00020273,2]
[368314720,1751112647770,-477.93,0.00020273,2]
[368314721,1751112647780,-468.63,0.00020273,2]
[368314722,1751112647789,-1390.5,0.00020273,2]
[368314723,1751112647798,-460.0,0.00020273,2]
[368314724,1751112647808,-3647.37,0.00020273,2]
[368314725,1751112647818,-460.0,0.00020273,2]
[368314726,1751112647827,-460.0,0.00020273,2]
[368314727,1751112647838,-706.41,0.00020273,2]
[368314728,1751112647848,-460.0,0.00020273,2]
[368314729,1751112647857,-460.0,0.00020273,2]
[368314730,1751112647866,-460.0,0.00020273,2]
[368314731,1751112647875,-460.0,0.00020273,2]
[368314732,1751112647885,-573.22,0.00020273,2]
[368314733,1751112647895,-460.0,0.00020273,2]
[368314734,1751112647904,-460.0,0.00020273,2]
[368314735,1751112647913,-460.0,0.00020273,2]
[368314736,1751112647922,-1036.57,0.00020273,2]
[368314737,1751112647931,-1628.95,0.00020273,2]
[368314738,1751112647941,-583.65,0.00020273,2]
[368314739,1751112647950,-460.0,0.00020273,2]
[368314740,1751112647959,-3695.96,0.00020273,2]
[368314741,1751112647968,-460.0,0.00020273,2]
[368314742,1751112647978,-460.0,0.00020273,2]
[368314743,1751112647987,-460.0,0.00020273,2]
[368314744,1751112647997,-460.0,0.00020273,2]
[368314745,1751112648006,-571.18,0.00020273,2]
[368314746,1751112648015,-460.0,0.00020273,2]
[368314747,1751112648024,-460.0,0.00020273,2]
[368314748,1751112648033,-1010.35,0.00020273,2]
[368314749,1751112648043,-865.16,0.00020273,2]
[368314750,1751112648052,-460.0,0.00020273,2]
[368314751,1751112648061,-460.0,0.00020273,2]
[368314752,1751112648071,-460.0,0.00020273,2]
[368314753,1751112648080,-1301.2,0.00020273,2]
[368314754,1751112648089,-579.75,0.00020273,2]
[368314755,1751112648099,-597.22,0.00020273,2]
[368314756,1751112648109,-153.0,0.00020301,2]
[368314757,1751112648118,-153.0,0.00020301,2]
[368314758,1751112648127,-153.0,0.00020301,2]
[368314759,1751112648136,-6503.10249779,0.00020314,3]
[368314760,1751112648145,-420.0,0.00020362,2]
[368314761,1751112648155,-420.0,0.00020362,2]
[368314762,1751112648165,-340.0,0.00020362,2]
[368314763,1751112648174,-420.0,0.00020362,2]
[368314764,1751112648183,-1680.0,0.00020364,2]
[368314765,1751112648193,-160.0,0.00020459,3]
[368314766,1751112648202,-1680.0,0.00020462,2]
[368314767,1751112648211,-386.0,0.00020492,2]
[368314768,1751112648221,-160.0,0.00020521,3]
[368314769,1751112648231,-213.78848551,0.00020521,3]
[368314770,1751112648240,-12564.78152626,0.00020521,3]
[368314771,1751112648249,-847.18566335,0.00020521,3]
[368314772,1751112648258,-6503.10249779,0.00020521,3]
[368314773,1751112648267,-386.0,0.00020529,2]
[368314774,1751112648276,-2543.34,0.00020538,3]
[368314775,1751112648286,-1271.66,0.00020538,3]
[368314776,1751112648295,-635.84,0.00020538,3]
[368314777,1751112648304,-317.92,0.00020538,3]
[368314778,1751112648313,-612.0,0.00020538,2]
[368314779,1751112648323,-500.0,0.00020547,14]
[368314780,1751112648332,-460.0,0.00020547,2]
[368314781,1751112648341,-460.0,0.00020547,2]
[368314782,1751112648351,-460.0,0.00020547,2]
[368314783,1751112648359,-460.0,0.00020547,2]
[368314784,1751112648369,-460.0,0.00020547,2]
[368314785,1751112648378,-460.0,0.00020547,2]
[368314786,1751112648387,-460.0,0.00020547,2]
[368314787,1751112648396,-165.71881809,0.00020547,2]
[368314788,1751112648406,-460.0,0.00020547,2]
[368314789,1751112648416,-460.0,0.00020547,2]
[368314790,1751112648426,-586.13,0.00020547,2]
[368314791,1751112648435,-460.0,0.00020547,2]
[368314792,1751112648445,-460.0,0.00020547,2]
[368314793,1751112648454,-460.0,0.00020547,2]
[368314794,1751112648463,-696.72,0.00020547,2]
[368314795,1751112648473,-460.0,0.00020547,2]
[368314796,1751112648482,-460.0,0.00020547,2]
[368314797,1751112648491,-460.0,0.00020547,2]
[368314798,1751112648501,-460.0,0.00020547,2]
[368314799,1751112648510,-411.05638163,0.00020547,2]
[368314800,1751112648519,-388.56911445,0.00020547,2]
[368314801,1751112648631,-167.8195284,0.00020547,2]
[368314802,1751112648641,-460.0,0.00020547,2]
[368314803,1751112648650,-460.0,0.00020547,2]
[368314804,1751112648660,-433.46174028,0.00020547,2]
[368314805,1751112648669,-460.0,0.00020547,2]
[368314806,1751112648679,-460.0,0.00020547,2]
[368314807,1751112648688,-1777.39,0.00020547,2]
[368314808,1751112648698,-460.0,0.00020547,2]
[368314809,1751112648707,-460.0,0.00020547,2]
[368314810,1751112648717,-2348.86,0.00020547,2]
[368314811,1751112648726,-903.49,0.00020547,2]
[368314812,1751112648735,-1929.81,0.00020547,2]
[368314813,1751112648744,-540.18,0.00020547,2]
[368314814,1751112648754,-770.42,0.00020547,2]
[368314815,1751112648763,-460.0,0.00020547,2]
[368314816,1751112648772,-460.0,0.00020547,2]
[368314817,1751112648782,-460.0,0.00020547,2]
[368314818,1751112648792,-460.0,0.00020547,2]
[368314819,1751112648801,-510.92,0.00020547,2]
[368314820,1751112648811,-460.0,0.00020547,2]
[368314821,1751112648821,-460.0,0.00020547,2]
[368314822,1751112648830,-460.0,0.00020547,2]
[368314823,1751112648840,-460.0,0.00020547,2]
[368314824,1751112648850,-460.0,0.00020547,2]
[368314825,1751112648859,-514.81,0.00020547,2]
[368314826,1751112648869,-460.0,0.00020547,2]
[368314827,1751112648878,-460.0,0.00020547,2]
[368314828,1751112648888,-2238.61,0.00020547,2]
[368314829,1751112648897,-460.0,0.00020547,2]
[368314830,1751112648907,-460.0,0.00020547,2]
[368314831,1751112648917,-2082.05,0.00020547,2]
[368314832,1751112648926,-460.0,0.00020547,2]
[368314833,1751112648936,-662.68,0.00020547,2]
[368314834,1751112648945,-888.51,0.00020547,2]
[368314835,1751112648954,-2294.55,0.00020547,2]
[368314836,1751112648964,-2565.67,0.00020547,2]
[368314837,1751112648973,-460.0,0.00020547,2]
[368314838,1751112648983,-571.49,0.00020547,2]
[368314839,1751112648992,-475.52,0.00020547,2]
[368314840,1751112649001,-985.11,0.00020547,2]
[368314841,1751112649010,-460.0,0.00020547,2]
[368314842,1751112649020,-472.84,0.00020547,2]
[368314843,1751112649029,-1816.69,0.00020547,2]
[368314844,1751112649039,-477.93,0.00020547,2]
[368314845,1751112649048,-468.63,0.00020547,2]
[368314846,1751112649057,-1390.5,0.00020547,2]
[368314847,1751112649066,-460.0,0.00020547,2]
[368314848,1751112649075,-3647.37,0.00020547,2]
[368314849,1751112649084,-460.0,0.00020547,2]
[368314850,1751112649093,-460.0,0.00020547,2]
[368314851,1751112649103,-706.41,0.00020547,2]
[368314852,1751112649112,-460.0,0.00020547,2]
[368314853,1751112649122,-460.0,0.00020547,2]
[368314854,1751112649131,-460.0,0.00020547,2]
[368314855,1751112649140,-573.22,0.00020547,2]
[368314856,1751112649152,-460.0,0.00020547,2]
[368314857,1751112649162,-460.0,0.00020547,2]
[368314858,1751112649171,-460.0,0.00020547,2]
[368314859,1751112649181,-1628.95,0.00020547,2]
[368314860,1751112649190,-460.0,0.00020547,2]
[368314861,1751112649201,-583.65,0.00020547,2]
[368314862,1751112649210,-3695.96,0.00020547,2]
[368314863,1751112649220,-460.0,0.00020547,2]
[368314864,1751112649232,-460.0,0.00020547,2]
[368314865,1751112649241,-460.0,0.00020547,2]
[368314866,1751112649251,-460.0,0.00020547,2]
[368314867,1751112649260,-571.18,0.00020547,2]
[368314868,1751112649269,-460.0,0.00020547,2]
[368314869,1751112649279,-460.0,0.00020547,2]
[368314870,1751112649288,-1010.35,0.00020547,2]
[368314871,1751112649297,-865.16,0.00020547,2]
[368314872,1751112649306,-151.0,0.00020547,2]
[368314873,1751112649317,-460.0,0.00020547,2]
[368314874,1751112649327,-460.0,0.00020547,2]
[368314875,1751112649338,-460.0,0.00020547,2]
[368314876,1751112649348,-1301.2,0.00020547,2]
[368314877,1751112649358,-579.75,0.00020547,2]
[368314878,1751112649368,-597.22,0.00020547,2]
[368314879,1751112649377,-3370.22,0.000206,2]
[368314880,1751112649387,-639.72859388,0.00020626,2]
[368314881,1751112649396,-386.0,0.0002063,2]
[368314882,1751112649407,-454.028,0.00020686,2]
[368314883,1751112649417,-6503.10249779,0.00020728,3]
[368314884,1751112649428,-5000.0,0.00020755,2]
[368314885,1751112649439,-207.4,0.00020755,2]
[368314886,1751112649448,-500.0,0.00020755,2]
[368314887,1751112649459,-500.0,0.00020755,2]
[368314888,1751112649468,-500.0,0.00020755,2]
[368314889,1751112649477,-500.0,0.00020755,2]
[368314890,1751112649486,-500.0,0.00020755,2]
[368314891,1751112649496,-500.0,0.00020755,2]
[368314892,1751112649506,-500.0,0.00020755,2]
[368314893,1751112649517,-500.0,0.00020755,2]
[368314894,1751112649527,-500.0,0.00020755,2]
[368314895,1751112649536,-500.0,0.00020755,2]